{"text_format":"1","workbook":"xlsx","n_sheets":3,"sheets":["ورقة1","ورقة2","ورقة3"],"not_rendered":{"charts":0,"images":1,"macros":1,"external_links":0,"defined_names":2,"comments":0,"pivot_tables":0},"unopened":[],"bounds":{"document_bytes":16777216,"sheet_cells":100000,"rows_first":2000,"rows_last":500,"rows_between":2000,"halvings":0,"cell_chars":16384,"cell_head_chars":4096},"cells_cut":0,"cells_raw":0,"read":"whole","date_system":"1900"}

{"sheet":"ورقة1","index":0,"n_rows":25,"n_cols":255,"rows_kept":25,"cut":false,"hidden":false,"merged":[[0,28,2,30],[0,27,2,27],[0,21,0,23],[0,3,0,5],[0,6,0,8],[0,9,0,11],[0,12,0,14],[0,15,0,17],[0,18,0,20],[0,0,2,0],[0,1,2,1],[0,25,2,25],[0,26,2,26],[0,24,1,24],[0,2,2,2]]}
["مسلسل","اسم الطالب","رقم الجلوس","القران ",null,null,"اسلامية ",null,null,"اللغة العربية ",null,null,"انجليزي",null,null,"رياضيات",null,null,"العلوم ",null,null,"اجتماعيات",null,null,"مجموع الكلي","نسبة مؤية","ترتيب","القدير","تقدير الطالب"]
[null,null,null,"محصلة الاختبارات","الامتحان","المجموع","محصلة الاختبارات","الامتحان","المجموع","محصلة الاختبارات","الامتحان","المجموع","محصلة الاختبارات","الامتحان","المجموع","محصلة الاختبارات","الامتحان","المجموع","محصلة الاختبارات","الامتحان","المجموع","محصلة الاختبارات","الامتحان","المجموع"]
[null,null,null,20,30,50,20,30,50,20,30,50,20,30,50,20,30,50,20,30,50,20,30,50,{"$f":"SUM(F3,I3,L3,O3,R3,U3,X3)","v":350},null,null,null,null,null,null,null,null,null,null,null,null,null,null,null,null,null,null,null,null,null,null,null,null,null,null,null,null,null,null,null,null,null,null,null,null,null,null,null,null,null,null,null,null,null,null,null,null,null,null,null,null,null,null,null,null,null,null,null,null,null,null,null,null,null,null,null,null,null,null,null,null,null,null,null,null,null,null,null,null,null,null,null,null,null,null,null,null,null,null,null,null,null,null,null,null,null,null,null,null,null,null,null,null,null,null,null,null,null,null,null,null,null,null,null,null,null,null,null,null,null,null,null,null,null,null,null,null,null,null,null,null,null,null,null,null,null,null,null,null,null,null,null,null,null,null,null,null,null,null,null,null,null,null,null,null,null,null,null,null,null,null,null,null,null,null,null,null,null,null,null,null,null,null,null,null,null,null,null,null,null,null,null,null,null,null,null,null,null,null,null,null,null,null,null,null,null,null,null,null,null,null,null,null,null,null,null,null,null,null,null,null,null,null,null,null,null,null,null,null,null,null,null,null,null,null,null,null,"غ","غائب"]
[1," ابراهيم صلاح محمد احمد بن نسر",1,16,11,{"$f":"SUM(D4:E4)","v":27},12,20,{"$f":"SUM(G4:H4)","v":32},12,19,{"$f":"SUM(J4:K4)","v":31},12,26,{"$f":"SUM(M4:N4)","v":38},18,24,{"$f":"SUM(P4:Q4)","v":42},16,18,{"$f":"SUM(S4:T4)","v":34},14,21,{"$f":"SUM(V4:W4)","v":35},{"$f":"SUM(F4,I4,L4,O4,R4,U4,X4)","v":239},{"$f":"Y4/$Y$3","v":0.68285714285714283},{"$f":"IF(Y4=\"\",\"\",IF(COUNTIF(Y4:$Y4,Y4)=1,OrdeUP100(RANK(Y4,$Y$4:$Y$1003)),XOrdeUP100(RANK(Y4,$Y$4:$Y$1003))&\" مكرّر  \"))","v":"السّادس"},{"$f":"VLOOKUP((Y4/$Y$3)*100/(2),تقدير,2,1)","v":"جيد"},25,32,"مقبول",null,null,null,null,null,null,null,null,null,null,null,null,null,null,null,null,null,null,null,null,null,null,null,null,null,null,null,null,null,null,null,null,null,null,null,null,null,null,null,null,null,null,null,null,null,null,null,null,null,null,null,null,null,null,null,null,null,null,null,null,null,null,null,null,null,null,null,null,null,null,null,null,null,null,null,null,null,null,null,null,null,null,null,null,null,null,null,null,null,null,null,null,null,null,null,null,null,null,null,null,null,null,null,null,null,null,null,null,null,null,null,null,null,null,null,null,null,null,null,null,null,null,null,null,null,null,null,null,null,null,null,null,null,null,null,null,null,null,null,null,null,null,null,null,null,null,null,null,null,null,null,null,null,null,null,null,null,null,null,null,null,null,null,null,null,null,null,null,null,null,null,null,null,null,null,null,null,null,null,null,null,null,null,null,null,null,null,null,null,null,null,null,null,null,null,null,null,null,null,null,null,null,null,null,null,null,null,null,null,null,null,null,null,null,null,null,null,null,null,null,null,null,0,"دون المستوى"]
[2," ابراهيم محمد عبدالله علي سنان",2,16,22,{"$f":"SUM(D5:E5)","v":38},14,18,{"$f":"SUM(G5:H5)","v":32},14,25,{"$f":"SUM(J5:K5)","v":39},12,17,{"$f":"SUM(M5:N5)","v":29},12,15,{"$f":"SUM(P5:Q5)","v":27},12,15,{"$f":"SUM(S5:T5)","v":27},16,12,{"$f":"SUM(V5:W5)","v":28},{"$f":"SUM(F5,I5,L5,O5,R5,U5,X5)","v":220},{"$f":"Y5/$Y$3","v":0.62857142857142856},{"$f":"IF(Y5=\"\",\"\",IF(COUNTIF(Y5:$Y5,Y5)=1,OrdeUP100(RANK(Y5,$Y$4:$Y$1003)),XOrdeUP100(RANK(Y5,$Y$4:$Y$1003))&\" مكرّر  \"))","v":"التّاسع"},"مقبول",33,37,"جيد",null,null,null,null,null,null,null,null,null,null,null,null,null,null,null,null,null,null,null,null,null,null,null,null,null,null,null,null,null,null,null,null,null,null,null,null,null,null,null,null,null,null,null,null,null,null,null,null,null,null,null,null,null,null,null,null,null,null,null,null,null,null,null,null,null,null,null,null,null,null,null,null,null,null,null,null,null,null,null,null,null,null,null,null,null,null,null,null,null,null,null,null,null,null,null,null,null,null,null,null,null,null,null,null,null,null,null,null,null,null,null,null,null,null,null,null,null,null,null,null,null,null,null,null,null,null,null,null,null,null,null,null,null,null,null,null,null,null,null,null,null,null,null,null,null,null,null,null,null,null,null,null,null,null,null,null,null,null,null,null,null,null,null,null,null,null,null,null,null,null,null,null,null,null,null,null,null,null,null,null,null,null,null,null,null,null,null,null,null,null,null,null,null,null,null,null,null,null,null,null,null,null,null,null,null,null,null,null,null,null,null,null,null,null,null,null,null,null,null,null,null,null,25,"مقبول"]
[3," ابوبكر احمد ابوبكر احمد بن حسن",3,16,10,26,14,14,28,10,21,31,12,23,35,18,15,33,12,17,29,14,24,38,220,0.62857142857142856,{"$f":"IF(Y6=\"\",\"\",IF(COUNTIF(Y6:$Y6,Y6)=1,OrdeUP100(RANK(Y6,$Y$4:$Y$1003)),XOrdeUP100(RANK(Y6,$Y$4:$Y$1003))&\" مكرّر  \"))","v":"التّاسع"},"مقبول",38,47,"جيد جداً",null,null,null,null,null,null,null,null,null,null,null,null,null,null,null,null,null,null,null,null,null,null,null,null,null,null,null,null,null,null,null,null,null,null,null,null,null,null,null,null,null,null,null,null,null,null,null,null,null,null,null,null,null,null,null,null,null,null,null,null,null,null,null,null,null,null,null,null,null,null,null,null,null,null,null,null,null,null,null,null,null,null,null,null,null,null,null,null,null,null,null,null,null,null,null,null,null,null,null,null,null,null,null,null,null,null,null,null,null,null,null,null,null,null,null,null,null,null,null,null,null,null,null,null,null,null,null,null,null,null,null,null,null,null,null,null,null,null,null,null,null,null,null,null,null,null,null,null,null,null,null,null,null,null,null,null,null,null,null,null,null,null,null,null,null,null,null,null,null,null,null,null,null,null,null,null,null,null,null,null,null,null,null,null,null,null,null,null,null,null,null,null,null,null,null,null,null,null,null,null,null,null,null,null,null,null,null,null,null,null,null,null,null,null,null,null,null,null,null,null,null,null,33,"جيد"]
[4," ابوبكر احمد صالح سالم الحطيبي",4,14,8,22,14,15,29,8,18,26,8,15,23,18,17,35,14,8,22,14,13,27,184,0.52571428571428569,{"$f":"IF(Y7=\"\",\"\",IF(COUNTIF(Y7:$Y7,Y7)=1,OrdeUP100(RANK(Y7,$Y$4:$Y$1003)),XOrdeUP100(RANK(Y7,$Y$4:$Y$1003))&\" مكرّر  \"))","v":"الحادي عشر"},"مقبول",48,50,"ممتاز",null,null,null,null,null,null,null,null,null,null,null,null,null,null,null,null,null,null,null,null,null,null,null,null,null,null,null,null,null,null,null,null,null,null,null,null,null,null,null,null,null,null,null,null,null,null,null,null,null,null,null,null,null,null,null,null,null,null,null,null,null,null,null,null,null,null,null,null,null,null,null,null,null,null,null,null,null,null,null,null,null,null,null,null,null,null,null,null,null,null,null,null,null,null,null,null,null,null,null,null,null,null,null,null,null,null,null,null,null,null,null,null,null,null,null,null,null,null,null,null,null,null,null,null,null,null,null,null,null,null,null,null,null,null,null,null,null,null,null,null,null,null,null,null,null,null,null,null,null,null,null,null,null,null,null,null,null,null,null,null,null,null,null,null,null,null,null,null,null,null,null,null,null,null,null,null,null,null,null,null,null,null,null,null,null,null,null,null,null,null,null,null,null,null,null,null,null,null,null,null,null,null,null,null,null,null,null,null,null,null,null,null,null,null,null,null,null,null,null,null,null,null,38,"جيد جداً"]
[5," احمد انيس عبدالله محمد سالم عمر",5,20,30,50,20,29,49,20,29,49,18,27,45,20,29,49,20,24,44,18,30,48,334,0.95428571428571429,{"$f":"IF(Y8=\"\",\"\",IF(COUNTIF(Y8:$Y8,Y8)=1,OrdeUP100(RANK(Y8,$Y$4:$Y$1003)),XOrdeUP100(RANK(Y8,$Y$4:$Y$1003))&\" مكرّر  \"))","v":"الأوّل"},"جيد جداً",null,null,null,null,null,null,null,null,null,null,null,null,null,null,null,null,null,null,null,null,null,null,null,null,null,null,null,null,null,null,null,null,null,null,null,null,null,null,null,null,null,null,null,null,null,null,null,null,null,null,null,null,null,null,null,null,null,null,null,null,null,null,null,null,null,null,null,null,null,null,null,null,null,null,null,null,null,null,null,null,null,null,null,null,null,null,null,null,null,null,null,null,null,null,null,null,null,null,null,null,null,null,null,null,null,null,null,null,null,null,null,null,null,null,null,null,null,null,null,null,null,null,null,null,null,null,null,null,null,null,null,null,null,null,null,null,null,null,null,null,null,null,null,null,null,null,null,null,null,null,null,null,null,null,null,null,null,null,null,null,null,null,null,null,null,null,null,null,null,null,null,null,null,null,null,null,null,null,null,null,null,null,null,null,null,null,null,null,null,null,null,null,null,null,null,null,null,null,null,null,null,null,null,null,null,null,null,null,null,null,null,null,null,null,null,null,null,null,null,null,null,null,null,null,null,48,"ممتاز"]
[6," احمد حسن احمد محمد زومع",6,14,9,23,10,18,28,6,16,22,16,7,23,16,15,31,14,9,23,12,12,24,174,0.49714285714285716,{"$f":"IF(Y9=\"\",\"\",IF(COUNTIF(Y9:$Y9,Y9)=1,OrdeUP100(RANK(Y9,$Y$4:$Y$1003)),XOrdeUP100(RANK(Y9,$Y$4:$Y$1003))&\" مكرّر  \"))","v":"الثّاني عشر"},"دون المستوى"]
[7," احمد محمد احمد عبدالله دينيش",7,14,11,25,12,7,19,10,8,18,10,8,18,12,6,18,10,16,26,14,11,25,149,0.42571428571428571,{"$f":"IF(Y10=\"\",\"\",IF(COUNTIF(Y10:$Y10,Y10)=1,OrdeUP100(RANK(Y10,$Y$4:$Y$1003)),XOrdeUP100(RANK(Y10,$Y$4:$Y$1003))&\" مكرّر  \"))","v":"السّابع عشر"},"دون المستوى"]
[8," احمد محمد احمد محمد زومع",8,20,30,50,18,27,45,16,26,42,18,28,46,20,27,47,18,19,37,18,21,39,306,0.87428571428571433,{"$f":"IF(Y11=\"\",\"\",IF(COUNTIF(Y11:$Y11,Y11)=1,OrdeUP100(RANK(Y11,$Y$4:$Y$1003)),XOrdeUP100(RANK(Y11,$Y$4:$Y$1003))&\" مكرّر  \"))","v":"الثّاني"},"جيد جداً"]
[9," امجد علي عبدالله حسن العلهي",9,18,30,48,16,28,44,16,25,41,12,28,40,12,25,37,12,21,33,16,28,44,287,0.82,{"$f":"IF(Y12=\"\",\"\",IF(COUNTIF(Y12:$Y12,Y12)=1,OrdeUP100(RANK(Y12,$Y$4:$Y$1003)),XOrdeUP100(RANK(Y12,$Y$4:$Y$1003))&\" مكرّر  \"))","v":"الثّالث"},"جيد جداً"]
[10," انور محمد صالح بن صالح الشرفي",10,10,10,20,10,11,21,8,10,18,10,8,18,10,6,16,12,15,27,16,10,26,146,0.41714285714285715,{"$f":"IF(Y13=\"\",\"\",IF(COUNTIF(Y13:$Y13,Y13)=1,OrdeUP100(RANK(Y13,$Y$4:$Y$1003)),XOrdeUP100(RANK(Y13,$Y$4:$Y$1003))&\" مكرّر  \"))","v":"الثّامن عشر"},"دون المستوى"]
[11," حسام صالح محمد بن محمد سنان",11,12,13,25,10,13,23,12,17,29,14,12,26,8,8,16,12,19,31,14,6,20,170,0.48571428571428571,{"$f":"IF(Y14=\"\",\"\",IF(COUNTIF(Y14:$Y14,Y14)=1,OrdeUP100(RANK(Y14,$Y$4:$Y$1003)),XOrdeUP100(RANK(Y14,$Y$4:$Y$1003))&\" مكرّر  \"))","v":"الثّالث عشر"},"دون المستوى"]
[12," خالد محمد حسين محمد العربي",12,14,10,24,10,15,25,10,13,23,12,14,26,12,15,27,10,20,30,1,14,15,170,0.48571428571428571,{"$f":"IF(Y15=\"\",\"\",IF(COUNTIF(Y15:$Y15,Y15)=1,OrdeUP100(RANK(Y15,$Y$4:$Y$1003)),XOrdeUP100(RANK(Y15,$Y$4:$Y$1003))&\" مكرّر  \"))","v":"الثّالث عشر"},"دون المستوى"]
[13," خالد محمد عبدالله ناصر بيبك",13,12,9,21,6,8,14,6,9,15,8,11,19,8,6,14,12,10,22,14,9,23,128,0.36571428571428571,{"$f":"IF(Y16=\"\",\"\",IF(COUNTIF(Y16:$Y16,Y16)=1,OrdeUP100(RANK(Y16,$Y$4:$Y$1003)),XOrdeUP100(RANK(Y16,$Y$4:$Y$1003))&\" مكرّر  \"))","v":"التّاسع عشر"},"دون المستوى"]
[14," راشد ماجد عبدالرب عبدالسلام",14,20,24,44,16,24,40,18,20,38,16,26,42,16,18,34,12,11,23,16,20,36,257,0.73428571428571432,{"$f":"IF(Y17=\"\",\"\",IF(COUNTIF(Y17:$Y17,Y17)=1,OrdeUP100(RANK(Y17,$Y$4:$Y$1003)),XOrdeUP100(RANK(Y17,$Y$4:$Y$1003))&\" مكرّر  \"))","v":"الخامس"},"جيد"]
[15," رايد محمد عبدالله بن عبدالله سواد",15,20,18,38,18,26,44,16,27,43,14,27,41,12,16,28,16,15,31,18,30,48,273,0.78,{"$f":"IF(Y18=\"\",\"\",IF(COUNTIF(Y18:$Y18,Y18)=1,OrdeUP100(RANK(Y18,$Y$4:$Y$1003)),XOrdeUP100(RANK(Y18,$Y$4:$Y$1003))&\" مكرّر  \"))","v":"الرّابع"},"جيد جداً"]
[16," سالم محمد ابوبكر احمد طرموم",16,14,5,19,12,10,22,10,11,21,12,12,24,14,10,24,14,12,26,14,14,28,164,0.46857142857142858,{"$f":"IF(Y19=\"\",\"\",IF(COUNTIF(Y19:$Y19,Y19)=1,OrdeUP100(RANK(Y19,$Y$4:$Y$1003)),XOrdeUP100(RANK(Y19,$Y$4:$Y$1003))&\" مكرّر  \"))","v":"السّادس عشر"},"دون المستوى"]
[17," سلطان عبدالخالق حسين ابوبكر الحقبي",17,16,12,28,14,21,35,12,24,36,14,13,27,16,15,31,12,22,34,16,26,42,233,0.6657142857142857,{"$f":"IF(Y20=\"\",\"\",IF(COUNTIF(Y20:$Y20,Y20)=1,OrdeUP100(RANK(Y20,$Y$4:$Y$1003)),XOrdeUP100(RANK(Y20,$Y$4:$Y$1003))&\" مكرّر  \"))","v":"الثّامن"},"جيد"]
[18," صالح ابوبكر عبدالله علي  سنان",18,14,8,22,10,11,21,8,7,15,10,10,20,10,2,12,8,15,23,10,3,13,126,0.36,{"$f":"IF(Y21=\"\",\"\",IF(COUNTIF(Y21:$Y21,Y21)=1,OrdeUP100(RANK(Y21,$Y$4:$Y$1003)),XOrdeUP100(RANK(Y21,$Y$4:$Y$1003))&\" مكرّر  \"))","v":"العشرون"},"دون المستوى"]
[19," صالح احمد حسين صالح سالم عمر",19,16,15,31,16,26,42,12,19,31,12,13,25,18,20,38,12,15,27,18,26,44,238,0.68,{"$f":"IF(Y22=\"\",\"\",IF(COUNTIF(Y22:$Y22,Y22)=1,OrdeUP100(RANK(Y22,$Y$4:$Y$1003)),XOrdeUP100(RANK(Y22,$Y$4:$Y$1003))&\" مكرّر  \"))","v":"السّابع"},"جيد"]
[20," صالح حسين عبدالرب عبدالله سنان",20,14,8,22,6,11,17,10,12,22,12,10,22,12,15,27,12,16,28,14,13,27,165,0.47142857142857142,{"$f":"IF(Y23=\"\",\"\",IF(COUNTIF(Y23:$Y23,Y23)=1,OrdeUP100(RANK(Y23,$Y$4:$Y$1003)),XOrdeUP100(RANK(Y23,$Y$4:$Y$1003))&\" مكرّر  \"))","v":"الخامس عشر"},"دون المستوى"]
[21,null,21,null,null,null,null,null,null,null,null,null,null,null,null,null,null,null,null,null,null,null,null,null,null,null,{"$f":"IF(Y24=\"\",\"\",IF(COUNTIF(Y24:$Y24,Y24)=1,OrdeUP100(RANK(Y24,$Y$4:$Y$1003)),XOrdeUP100(RANK(Y24,$Y$4:$Y$1003))&\" مكرّر  \"))","v":""},"دون المستوى"]
[22,null,22,null,null,null,null,null,null,null,null,null,null,null,null,null,null,null,null,null,null,null,null,null,null,null,{"$f":"IF(Y25=\"\",\"\",IF(COUNTIF(Y25:$Y25,Y25)=1,OrdeUP100(RANK(Y25,$Y$4:$Y$1003)),XOrdeUP100(RANK(Y25,$Y$4:$Y$1003))&\" مكرّر  \"))","v":""},"دون المستوى"]

{"sheet":"ورقة2","index":1,"n_rows":37,"n_cols":15,"rows_kept":37,"cut":false,"hidden":false,"merged":[[2,2,2,7],[1,0,1,11],[15,5,15,6],[15,1,15,3],[3,0,3,11],[4,1,4,2],[5,1,5,2],[4,3,4,4],[5,3,5,4],[4,5,4,6],[5,5,5,6],[2,0,2,1],[4,0,6,0],[14,0,14,4],[21,0,21,11],[22,2,22,7],[23,0,23,11],[25,1,25,2],[25,3,25,4],[25,5,25,6],[22,0,22,1],[24,1,24,2],[24,3,24,4],[34,0,34,4],[35,1,35,3],[35,5,35,6],[24,0,26,0],[24,5,24,6]]}
[null,null,null,null,null,null,null,null,null,null,null,null,1,"من","إلى"]
["إخطار بنتيجة الفصل الدراسي الأول  ( مرحلة التعليم الأساسي  )",null,null,null,null,null,null,null,null,null,null,null,null,{"$f":"MIN(ورقة1!A:A)","v":1},{"$f":"MAX(ورقة1!A:A)","v":22}]
["          اسم الطالب :  ",null,{"$f":"VLOOKUP($M$1,ورقة1!$A$4:$AB$1003,2,1)","v":" ابراهيم صلاح محمد احمد بن نسر"},null,null,null,null,null,"         رقم الجلوس :  ",null,{"$f":"VLOOKUP($M$1,ورقة1!$A$4:$AB$1003,3,1)","v":1}]
["الصــــــــف  :      (  الثامن  )       شعبة (   أ  )          العام الدراسي     2018  /   2019 م"]
["المواد الدراسية","المحصلة الأولى",null,"امتحان الفصل الأول",null,"المجمــــــــــــــوع",null,null,null,null,null,null,null,"أصغر رقم",{"$f":"MIN(ورقة1!C:C)","v":1}]
[null,0.2,null,0.3,null,0.5,null,"ملاحظة رائد الفصل :........................",null,null,null,null,null,"أكبر رقم",{"$f":"MAX(ورقة1!C:C)","v":22}]
[null,"رقما","كتــابـــة","رقما","كتـابـــة","رقما","كتــابـــة",null,null,null,null,".............................................................",{"$f":"NN(B8)","v":""}]
["القـران الكـريــــم",{"$f":"VLOOKUP($M$1,ورقة1!$A$4:$AB$1003,4,1)","v":16},{"$f":"IFERROR(IF(B8=\"\",\"\",IF(B8=0,\"صفر\",n2t(B8))),\"\")","v":"ست عشرة درجةً"},{"$f":"VLOOKUP($M$1,ورقة1!$A$4:$AB$1003,5,1)","v":11},{"$f":"IFERROR(IF(D8=\"\",\"\",IF(D8=0,\"صفر\",n2t(D8))),\"\")","v":"إحدى عشرة درجةً"},{"$f":"VLOOKUP($M$1,ورقة1!$A$4:$AB$1003,6,1)","v":27},{"$f":"IFERROR(IF(F8=\"\",\"\",IF(F8=0,\"صفر\",n2t(F8))),\"\")","v":"سبع و عشرونَ درجةً"},null,null,null,null,"..................................................."]
["التربية الإسلامية",{"$f":"VLOOKUP($M$1,ورقة1!$A$4:$AB$1003,7,1)","v":12},{"$f":"IFERROR(IF(B9=\"\",\"\",IF(B9=0,\"صفر\",n2t(B9))),\"\")","v":"اثنتا عشرة درجةً"},{"$f":"VLOOKUP($M$1,ورقة1!$A$4:$AB$1003,8,1)","v":20},{"$f":"IFERROR(IF(D9=\"\",\"\",IF(D9=0,\"صفر\",n2t(D9))),\"\")","v":" عشرونَ درجةً"},{"$f":"VLOOKUP($M$1,ورقة1!$A$4:$AB$1003,9,1)","v":32},{"$f":"IFERROR(IF(F9=\"\",\"\",IF(F9=0,\"صفر\",n2t(F9))),\"\")","v":"اثنتانِ و ثلاثونَ درجةً"},"التوقيع  :........................................"]
["اللغـة العـربيــــة",{"$f":"VLOOKUP($M$1,ورقة1!$A$4:$AB$1003,10,1)","v":12},{"$f":"IFERROR(IF(B10=\"\",\"\",IF(B10=0,\"صفر\",n2t(B10))),\"\")","v":"اثنتا عشرة درجةً"},{"$f":"VLOOKUP($M$1,ورقة1!$A$4:$AB$1003,11,1)","v":19},{"$f":"IFERROR(IF(D10=\"\",\"\",IF(D10=0,\"صفر\",n2t(D10))),\"\")","v":"تسع عشرة درجةً"},{"$f":"VLOOKUP($M$1,ورقة1!$A$4:$AB$1003,12,1)","v":31},{"$f":"IFERROR(IF(F10=\"\",\"\",IF(F10=0,\"صفر\",n2t(F10))),\"\")","v":"إحدى و ثلاثونَ درجةً"},"التاريخ : ........................................",null,null,null,null,"اضغط زر أمر طباعة "]
["اللغة الإنجليزية",{"$f":"VLOOKUP($M$1,ورقة1!$A$4:$AB$1003,13,1)","v":12},{"$f":"IFERROR(IF(B11=\"\",\"\",IF(B11=0,\"صفر\",n2t(B11))),\"\")","v":"اثنتا عشرة درجةً"},{"$f":"VLOOKUP($M$1,ورقة1!$A$4:$AB$1003,14,1)","v":26},{"$f":"IFERROR(IF(D11=\"\",\"\",IF(D11=0,\"صفر\",n2t(D11))),\"\")","v":"ست و عشرونَ درجةً"},{"$f":"VLOOKUP($M$1,ورقة1!$A$4:$AB$1003,15,1)","v":38},{"$f":"IFERROR(IF(F11=\"\",\"\",IF(F11=0,\"صفر\",n2t(F11))),\"\")","v":"ثمان و ثلاثونَ درجةً"},"ملاحظات مدير المدرسة : ................."]
["الـريـــاضـيــــات",{"$f":"VLOOKUP($M$1,ورقة1!$A$4:$AB$1003,16,1)","v":18},{"$f":"IFERROR(IF(B12=\"\",\"\",IF(B12=0,\"صفر\",n2t(B12))),\"\")","v":"ثمان عشرة درجةً"},{"$f":"VLOOKUP($M$1,ورقة1!$A$4:$AB$1003,17,1)","v":24},{"$f":"IFERROR(IF(D12=\"\",\"\",IF(D12=0,\"صفر\",n2t(D12))),\"\")","v":"أربع و عشرونَ درجةً"},{"$f":"VLOOKUP($M$1,ورقة1!$A$4:$AB$1003,18,1)","v":42},{"$f":"IFERROR(IF(F12=\"\",\"\",IF(F12=0,\"صفر\",n2t(F12))),\"\")","v":"اثنتانِ و أربعونَ درجةً"},null,null,null,null,"...................................................."]
["العلـوم الصحيــة",{"$f":"VLOOKUP($M$1,ورقة1!$A$4:$AB$1003,19,1)","v":16},{"$f":"IFERROR(IF(B13=\"\",\"\",IF(B13=0,\"صفر\",n2t(B13))),\"\")","v":"ست عشرة درجةً"},{"$f":"VLOOKUP($M$1,ورقة1!$A$4:$AB$1003,20,1)","v":18},{"$f":"IFERROR(IF(D13=\"\",\"\",IF(D13=0,\"صفر\",n2t(D13))),\"\")","v":"ثمان عشرة درجةً"},{"$f":"VLOOKUP($M$1,ورقة1!$A$4:$AB$1003,21,1)","v":34},{"$f":"IFERROR(IF(F13=\"\",\"\",IF(F13=0,\"صفر\",n2t(F13))),\"\")","v":"أربع و ثلاثونَ درجةً"},null,null,null,null,"..................................................."]
["الاجتمــاعـيـــات",{"$f":"VLOOKUP($M$1,ورقة1!$A$4:$AB$1003,22,1)","v":14},{"$f":"IFERROR(IF(B14=\"\",\"\",IF(B14=0,\"صفر\",n2t(B14))),\"\")","v":"أربع عشرة درجةً"},{"$f":"VLOOKUP($M$1,ورقة1!$A$4:$AB$1003,23,1)","v":21},{"$f":"IFERROR(IF(D14=\"\",\"\",IF(D14=0,\"صفر\",n2t(D14))),\"\")","v":"إحدى و عشرونَ درجةً"},{"$f":"VLOOKUP($M$1,ورقة1!$A$4:$AB$1003,24,1)","v":35},{"$f":"IFERROR(IF(F14=\"\",\"\",IF(F14=0,\"صفر\",n2t(F14))),\"\")","v":"خمس و ثلاثونَ درجةً"},"التوقيع : ........................................"]
["المجـمـــــــــــــــــــــــــــــــــــــــــــــــــوع الكلـــــي",null,null,null,null,{"$f":"VLOOKUP($M$1,ورقة1!$A$4:$AB$1003,25,1)","v":239},{"$f":"IFERROR(IF(F15=\"\",\"\",IF(F15=0,\"صفر\",n2t(F15))),\"\")","v":"مائتانِ و تسع و ثلاثونَ درجةً"},"التاريخ : ............................."]
["الترتيب:",{"$f":"VLOOKUP($M$1,ورقة1!$A$4:$AB$1003,27,1)","v":"السّادس"},null,null,"التقدير",{"$f":"VLOOKUP($M$1,ورقة1!$A$4:$AB$1003,28,1)","v":"جيد"}]
["   إدارة التربية والتعليم                                                مكتب التربية والتعليم بالمديرية"]
[]
[]
[]
[]
["إخطار بنتيجة الفصل الدراسي الأول  ( مرحلة التعليم الأساسي  )"]
["          اسم الطالب :  ",null,{"$f":"VLOOKUP($M$1+1,ورقة1!$A$4:$AB$1003,2,1)","v":" ابراهيم محمد عبدالله علي سنان"},null,null,null,null,null,"         رقم الجلوس :  ",null,{"$f":"VLOOKUP($M$1+1,ورقة1!$A$4:$AB$1003,3,1)","v":2}]
["الصــــــــف  :      (  الثامن  )       شعبة (   أ  )          العام الدراسي     2018  /   2019 م"]
["المواد الدراسية","المحصلة الأولى",null,"امتحان الفصل الأول",null,"المجمــــــــوع"]
[null,0.2,null,0.3,null,0.5,null,"ملاحظة رائد الفصل :........................"]
[null,"رقمـا","كتــابـــة","رقمــا","كتـابـــة","رقمــا","كتــابـــة",null,null,null,null,"............................................................."]
["القـران الكـريــــم",{"$f":"VLOOKUP($M$1+1,ورقة1!$A$4:$AB$1003,4,1)","v":16},{"$f":"S(B28)","v":"ستة عشر"},{"$f":"VLOOKUP($M$1+1,ورقة1!$A$4:$AB$1003,5,1)","v":22},{"$f":"S(D28)","v":"اثنا وعشرون"},{"$f":"VLOOKUP($M$1+1,ورقة1!$A$4:$AB$1003,6,1)","v":38},{"$f":"S(F28)","v":"ثمانية وثلاثون"},null,null,null,null,"..................................................."]
["التربية الإسلامية",{"$f":"VLOOKUP($M$1+1,ورقة1!$A$4:$AB$1003,7,1)","v":14},{"$f":"S(B29)","v":"أربعة عشر"},{"$f":"VLOOKUP($M$1+1,ورقة1!$A$4:$AB$1003,8,1)","v":18},{"$f":"S(D29)","v":"ثمانية عشر"},{"$f":"VLOOKUP($M$1+1,ورقة1!$A$4:$AB$1003,9,1)","v":32},{"$f":"S(F29)","v":"اثنا وثلاثون"},"التوقيع  :........................................"]
["اللغـة العـربيــــة",{"$f":"VLOOKUP($M$1+1,ورقة1!$A$4:$AB$1003,10,1)","v":14},"أربعة عشر",{"$f":"VLOOKUP($M$1+1,ورقة1!$A$4:$AB$1003,11,1)","v":25},"خمسة وعشرون",{"$f":"VLOOKUP($M$1+1,ورقة1!$A$4:$AB$1003,12,1)","v":39},"تسعة وثلاثون","التاريخ : ........................................"]
["اللغة الإنجليزية",{"$f":"VLOOKUP($M$1+1,ورقة1!$A$4:$AB$1003,13,1)","v":12},"اثنا عشر",{"$f":"VLOOKUP($M$1+1,ورقة1!$A$4:$AB$1003,14,1)","v":17},"سبعة عشر",{"$f":"VLOOKUP($M$1+1,ورقة1!$A$4:$AB$1003,15,1)","v":29},"تسعة وعشرون","ملاحظات مدير المدرسة : ................."]
["الـريـــاضـيــــات",{"$f":"VLOOKUP($M$1+1,ورقة1!$A$4:$AB$1003,16,1)","v":12},"اثنا عشر",{"$f":"VLOOKUP($M$1+1,ورقة1!$A$4:$AB$1003,17,1)","v":15},"خمسة عشر",{"$f":"VLOOKUP($M$1+1,ورقة1!$A$4:$AB$1003,18,1)","v":27},"سبعة وعشرون",null,null,null,null,"...................................................."]
["العلـوم الصحيــة",{"$f":"VLOOKUP($M$1+1,ورقة1!$A$4:$AB$1003,19,1)","v":12},{"$f":"S(B33)","v":"اثنا عشر"},{"$f":"VLOOKUP($M$1+1,ورقة1!$A$4:$AB$1003,20,1)","v":15},"خمسة عشر",{"$f":"VLOOKUP($M$1+1,ورقة1!$A$4:$AB$1003,21,1)","v":27},"سبعة وعشرون",null,null,null,null,"..................................................."]
["الاجتمــاعـيـــات",{"$f":"VLOOKUP($M$1+1,ورقة1!$A$4:$AB$1003,22,1)","v":16},"ستة عشر",{"$f":"VLOOKUP($M$1+1,ورقة1!$A$4:$AB$1003,23,1)","v":12},"اثنا عشر",{"$f":"VLOOKUP($M$1+1,ورقة1!$A$4:$AB$1003,24,1)","v":28},"ثمانية وعشرون","التوقيع : ........................................"]
["المجـمـــــــــــــــــــــــــــــــــــــــــــــــــوع الكلـــــي",null,null,null,null,{"$f":"VLOOKUP($M$1+11,ورقة1!$A$4:$AB$1003,25,1)","v":170},"مائة وسبعون","التاريخ : ............................."]
["الترتيب:",{"$f":"VLOOKUP($M$1+1,ورقة1!$A$4:$AB$1003,27,1)","v":"التّاسع"},null,null,"التقدير",{"$f":"VLOOKUP($M$1+1,ورقة1!$A$4:$AB$1003,28,1)","v":"مقبول"}]
["   إدارة التربية والتعليم                                                مكتب التربية والتعليم بالمديرية"]

{"sheet":"ورقة3","index":2,"n_rows":0,"n_cols":0,"rows_kept":0,"cut":false,"hidden":false,"merged":[]}